fUSD/lending_fUSD_20250622
["ID","MTS","AMOUNT","RATE_DAILY","PERIOD"]
[366974177,1750603839603,-150.0,0.00026302,2]
[366974180,1750603839613,-150.0,0.00026304,2]
[366974183,1750603839623,-150.0,0.00026308,2]
[366974186,1750603839633,-150.0,0.00026308,2]
[366974188,1750603839643,-690.73618423,0.00026309,2]
[366974191,1750603839653,-1000.0,0.00026316,2]
[366974192,1750603839665,-254.27355687,0.00026318,2]
[366974194,1750603839675,-625.37770583,0.00026324,2]
[366974196,1750603839685,-150.0,0.00026324,2]
[366974198,1750603839694,-150.0,0.00026328,2]
[366974201,1750603839707,-172.8951572,0.00026329,30]
[366974203,1750603839717,-150.0,0.0002633,2]
[366974205,1750603839727,-150.0,0.00026342,2]
[366974207,1750603839737,-1321.41118099,0.00026344,10]
[366974209,1750603839746,-1000.0,0.00026345,2]
[366974210,1750603839755,-150.0,0.00026346,2]
[366974213,1750603839765,-300.0,0.0002635,2]
[366974216,1750603839775,-150.0,0.0002636,2]
[366974219,1750603839785,-500.0,0.00026373,2]
[366974222,1750603839795,-210.56,0.00026384,2]
[366974225,1750603839804,-35466.3632654,0.0002639,3]
[366974228,1750603839814,-79424.36689934,0.000264,2]
[366974231,1750603839825,-151.0,0.000264,7]
[366974234,1750603839835,-230.907838,0.000264,7]
[366974237,1750603839845,-230.907838,0.000264,7]
[366974240,1750603839854,-153.489326,0.000264,7]
[366974267,1750603839864,-250.12884777,0.000264,2]
[366974273,1750603840125,-151.0,0.000264,2]
[366974275,1750603840135,-165.7,0.000264,14]
[366974277,1750603840145,-172.8951572,0.00026438,30]
[366974279,1750603840154,-153.67,0.00026441,120]
[366974281,1750603840164,-1000.0,0.00026485,2]
[366974283,1750603840173,-35466.3632654,0.0002649,3]
[366974285,1750603840183,-1000.0,0.000265,2]
[366974286,1750603840193,-1000.0,0.000265,6]
[366974288,1750603840203,-2198.96403101,0.000265,2]
[366974290,1750603840212,-223.960344,0.000265,7]
[366974292,1750603840222,-151.0,0.000265,7]
[366974295,1750603840232,-151.0,0.000265,7]
[366974297,1750603840242,-151.0,0.000265,7]
[366974298,1750603840252,-151.0,0.000265,7]
[366974300,1750603840262,-151.0,0.000265,7]
[366974302,1750603840271,-834.42866044,0.000265,7]
[366974305,1750603840281,-172.8951572,0.00026548,30]
[366974307,1750603840290,-2147.55,0.00026575,2]
[366974308,1750603840300,-174.61919141,0.00026588,2]
[366974310,1750603840309,-151.0,0.00026592,7]
[366974312,1750603840318,-151.0,0.00026592,7]
[366974314,1750603840329,-151.0,0.00026592,7]
[366974316,1750603840338,-151.0,0.00026592,7]
[366974318,1750603840348,-227.289352,0.00026592,7]
[366974320,1750603840358,-227.289352,0.00026592,7]
[366974322,1750603840368,-151.0,0.00026592,7]
[366974324,1750603840378,-160.917405,0.00026592,7]
[366974326,1750603840388,-160.917405,0.00026592,7]
[366974328,1750603840397,-151.0,0.00026592,7]
[366974330,1750603840407,-154.753994,0.00026592,7]
[366974332,1750603840417,-172.8951572,0.0002663,30]
[366974334,1750603840427,-202.09,0.00026676,2]
[366974336,1750603840437,-3840.43171158,0.00026693,15]
[366974338,1750603840446,-250.0,0.00026702,2]
[366974340,1750603840456,-690.73618423,0.0002672,2]
[366974343,1750603840468,-172.8951572,0.0002674,30]
[366974345,1750603840478,-248.71531821,0.00026748,2]
[366974346,1750603840487,-151.0,0.000268,7]
[366974349,1750603840498,-151.0,0.000268,7]
[366974350,1750603840508,-151.0,0.000268,7]
[366974353,1750603840518,-152.0,0.00026814,4]
[366974354,1750603840528,-1068.0,0.00026838,2]
[366974358,1750603840538,-331.32,0.00026839,120]
[366974361,1750603840548,-2147.55,0.00026849,2]
[366974363,1750603840558,-172.8951572,0.00026849,30]
[366974365,1750603840567,-156.0,0.00026891,2]
[366974366,1750603840582,-200.0,0.000269,9]
[366974368,1750603840592,-1043.04037009,0.00026921,2]
[366974370,1750603840602,-172.8951572,0.00026959,30]
[366974372,1750603840612,-336.51,0.00026986,120]
[366974374,1750603840622,-35466.3632654,0.0002699,3]
[366974376,1750603840632,-1000.0,0.00027,2]
[366974378,1750603840643,-250.0,0.00027,2]
[366974380,1750603840653,-1004.69320446,0.00027,2]
[366974382,1750603840663,-10415.70446286,0.00027,2]
[366974384,1750603840673,-6063.92398971,0.00027,2]
[366974386,1750603840684,-1000.0,0.00027,9]
[366974388,1750603840693,-51192.35178047,0.00027,2]
[366974390,1750603840703,-2000.0,0.00027,2]
[366974392,1750603840715,-400.0,0.00027,2]
[366974394,1750603840725,-2105.53809,0.0002701,2]
[366974396,1750603840735,-151.0,0.0002701,7]
[366974398,1750603840745,-203.703856,0.0002701,7]
[366974400,1750603840755,-203.703856,0.0002701,7]
[366974402,1750603840766,-156.636763,0.0002701,7]
[366974404,1750603840775,-156.636763,0.0002701,7]
[366974406,1750603840785,-172.8951572,0.00027068,30]
[366974408,1750603840794,-211.0,0.0002709,2]
[366974410,1750603840804,-2147.55,0.00027123,2]
[366974412,1750603840814,-171.672728,0.00027123,7]
[366974414,1750603840828,-3575.41,0.00027123,2]
[366974416,1750603840838,-690.73618423,0.00027131,2]
[366974418,1750603840848,-35466.3632654,0.0002718,3]
[366974421,1750603840858,-26383.1133095,0.0002718,3]
[366974422,1750603840867,-35466.3632654,0.0002719,3]
[366974423,1750603840877,-52766.2266191,0.0002719,3]
[366974425,1750603840888,-152.54,0.0002719,2]
[366974427,1750603840898,-151.0,0.00027195,7]
[366974428,1750603840908,-88384.20035508,0.000272,2]
[366974430,1750603840917,-424.10789384,0.000272,2]
[366974432,1750603840927,-165.61439584,0.00027278,2]
[366974434,1750603840938,-165.40150104,0.0002729,2]
[366974435,1750603840949,-2000.0,0.00027314,60]
[366974437,1750603840958,-500.0,0.00027314,120]
[366974439,1750603840968,-35466.3632654,0.00027357,3]
[366974440,1750603840980,-26383.1133095,0.00027357,3]
[366974442,1750603840990,-35466.3632654,0.00027387,3]
[366974444,1750603841000,-26383.1133095,0.00027387,3]
[366974445,1750603841009,-5029.2168841,0.0002739,28]
[366974447,1750603841019,-165.43219466,0.0002739,2]
[366974449,1750603841029,-169.048,0.00027396,2]
[366974451,1750603841039,-256.75372004,0.00027397,3]
[366974452,1750603841051,-2147.55,0.00027397,2]
[366974454,1750603841066,-151.0,0.00027397,7]
[366974456,1750603841079,-151.0,0.00027397,7]
[366974458,1750603841088,-151.0,0.00027397,7]
[366974459,1750603841098,-1000.0,0.00027397,15]
[366974461,1750603841107,-1000.0,0.00027397,15]
[366974463,1750603841118,-477.29202119,0.00027397,15]
[366974465,1750603841127,-151.0,0.00027397,7]
[366974466,1750603841137,-151.0,0.00027397,7]
[366974468,1750603841147,-151.0,0.00027397,7]
[366974470,1750603841157,-261.934028,0.00027397,7]
[366974472,1750603841166,-224.75,0.00027397,80]
[366974474,1750603841176,-571.88,0.00027397,2]
[366974475,1750603841184,-7759.64,0.00027397,2]
[366974477,1750603841194,-150.0,0.00027397,2]
[366974479,1750603841203,-328.79310323,0.00027397,2]
[366974481,1750603841212,-502.91,0.00027397,2]
[366974482,1750603841221,-1000.0,0.00027397,7]
[366974484,1750603841231,-300.0,0.00027397,2]
[366974486,1750603841241,-1200.0,0.000274,2]
[366974487,1750603841250,-527.0,0.000274,2]
[366974489,1750603841259,-500.0,0.000274,2]
[366974491,1750603841268,-3840.43171158,0.00027417,17]
[366974493,1750603841278,-152.0,0.00027458,5]
[366974494,1750603841287,-150.0,0.00027478,2]
[366974496,1750603841297,-1000.0,0.000275,2]
[366974498,1750603841306,-690.73618423,0.00027543,2]
[366974500,1750603841315,-1946.73973523,0.00027567,2]
[366974501,1750603841326,-500.0,0.0002759,2]
[366974503,1750603841335,-26383.1133095,0.00027648,3]
[366974505,1750603841345,-501.74324284,0.00027658,30]
[366974507,1750603841355,-502.1437718,0.00027658,30]
[366974508,1750603841365,-500.0,0.00027658,30]
[366974510,1750603841374,-700.0,0.00027658,30]
[366974512,1750603841384,-700.0,0.00027658,30]
[366974514,1750603841393,-700.0,0.00027658,30]
[366974516,1750603841403,-700.0,0.00027658,30]
[366974517,1750603841412,-700.0,0.00027658,30]
[366974519,1750603841422,-700.0,0.00027658,30]
[366974521,1750603841431,-500.0,0.00027658,30]
[366974523,1750603841440,-700.0,0.00027658,30]
[366974525,1750603841450,-700.0,0.00027658,30]
[366974526,1750603841459,-700.0,0.00027658,30]
[366974528,1750603841472,-538.67656204,0.00027658,30]
[366974530,1750603841482,-700.0,0.00027658,30]
[366974532,1750603841494,-500.0,0.00027658,30]
[366974534,1750603841503,-248.58945179,0.00027658,30]
[366974536,1750603841513,-700.0,0.00027658,30]
[366974538,1750603841522,-500.0,0.00027658,30]
[366974539,1750603841532,-700.0,0.00027658,30]
[366974541,1750603841541,-700.0,0.00027658,30]
[366974543,1750603841552,-700.0,0.00027658,30]
[366974545,1750603841562,-700.0,0.00027658,30]
[366974546,1750603841573,-500.0,0.00027658,30]
[366974548,1750603841583,-500.0,0.00027658,30]
[366974550,1750603841592,-500.0,0.00027658,30]
[366974552,1750603841602,-500.0,0.00027658,30]
[366974554,1750603841611,-500.0,0.00027658,30]
[366974555,1750603841621,-500.0,0.00027658,30]
[366974557,1750603841630,-163.76589991,0.00027658,30]
[366974559,1750603841640,-500.0,0.00027658,30]
[366974561,1750603841650,-500.0,0.00027658,30]
[366974563,1750603841660,-910.38578722,0.00027658,30]
[366974565,1750603841670,-500.0,0.00027658,30]
[366974566,1750603841679,-530.57966109,0.00027658,30]
[366974568,1750603841688,-500.0,0.00027658,30]
[366974570,1750603841698,-2147.55,0.00027671,2]
[366974572,1750603841707,-205.0,0.00027685,6]
[366974574,1750603841716,-5025.88050473,0.000277,2]
[366974575,1750603841726,-35466.3632654,0.0002779,3]
[366974577,1750603841735,-151.0,0.000278,7]
[366974579,1750603841745,-154.362309,0.000278,7]
[366974581,1750603841755,-500.0,0.000278,10]
[366974583,1750603841766,-150.0,0.00027807,2]
[366974585,1750603841775,-549.29957859,0.00027899,10]
[366974587,1750603841784,-700.0,0.000279,10]
[366974588,1750603841793,-168.5591253,0.00027925,2]
[366974590,1750603841802,-26383.1133095,0.00027935,3]
[366974592,1750603841812,-6000.0,0.00027945,3]
[366974594,1750603841823,-2147.55,0.00027945,2]
[366974596,1750603841832,-690.73618423,0.00027954,2]
[366974597,1750603841842,-181.08010149,0.00027957,2]
[366974599,1750603841851,-35466.3632654,0.0002797,3]
[366974601,1750603841861,-26383.1133095,0.0002797,3]
[366974603,1750603841871,-35466.3632654,0.0002798,3]
[366974605,1750603841881,-26383.1133095,0.0002798,3]
[366974607,1750603841891,-70932.7265308,0.0002799,3]
[366974608,1750603841900,-79149.3399286,0.0002799,3]
[366974610,1750603841910,-2999.98,0.00028,2]
[366974612,1750603841920,-278.87,0.00028,2]
[366974614,1750603841931,-3000.0,0.00028,2]
[366974616,1750603841941,-3000.0,0.00028,2]
[366974618,1750603841950,-3000.0,0.00028,2]
[366974619,1750603841960,-3000.0,0.00028,2]
[366974621,1750603841969,-1787.96,0.00028,2]
[366974623,1750603841980,-1422.35436999,0.00028,14]
[366974625,1750603841990,-1000.0,0.00028,2]
[366974627,1750603841999,-1000.0,0.00028,10]
[366974628,1750603842008,-151.0,0.00028,7]
[366974630,1750603842018,-151.0,0.00028,7]
[366974632,1750603842027,-12606.72332639,0.00028,2]
[366974634,1750603842037,-151.0,0.00028,7]
[366974636,1750603842046,-151.760227,0.00028,7]
[366974637,1750603842057,-252.13446653,0.00028,2]
[366974639,1750603842066,-151.0,0.00028,7]
[366974641,1750603842078,-186.359546,0.00028,7]
[366974643,1750603842087,-151.0,0.00028,7]
[366974644,1750603842096,-151.0,0.00028,7]
[366974646,1750603842105,-151.0,0.00028,7]
[366974648,1750603842114,-154.753994,0.00028,7]
[366974650,1750603842124,-582.39,0.00028,10]
[366974652,1750603842133,-151.0,0.00028,7]
[366974654,1750603842142,-7392.28,0.00028,2]
[366974655,1750603842152,-255.84330138,0.00028,2]
[366974657,1750603842161,-834.42866044,0.00028,30]
[366974659,1750603842171,-2162.695661,0.00028,2]
[366974661,1750603842180,-10724.12,0.00028,2]
[366974663,1750603842190,-73886.73,0.00028,2]
[366974664,1750603842199,-4724.51,0.00028,2]
[366974666,1750603842209,-3623.83,0.00028,2]
[366974668,1750603842218,-151.0,0.00028032,7]
[366974670,1750603842227,-151.0,0.00028032,7]
[366974672,1750603842236,-225.605478,0.00028032,7]
[366974674,1750603842246,-151.0,0.00028032,7]
[366974676,1750603842255,-160.917405,0.00028032,7]
[366974677,1750603842263,-160.917405,0.00028032,7]
[366974679,1750603842273,-152.0,0.00028101,6]
[366974681,1750603842282,-26383.1133095,0.00028109,3]
[366974683,1750603842290,-257.91778498,0.00028117,2]
[366974684,1750603842299,-150.0,0.00028118,2]
[366974686,1750603842309,-12500.0,0.00028119,3]
[366974688,1750603842318,-459.961665,0.00028131,2]
[366974690,1750603842329,-459.961665,0.00028131,2]
[366974692,1750603842338,-151.0,0.00028131,7]
[366974694,1750603842348,-227.289352,0.00028131,7]
[366974696,1750603842357,-227.289352,0.00028131,7]
[366974697,1750603842367,-151.0,0.00028131,7]
[366974699,1750603842376,-151.0,0.00028131,7]
[366974701,1750603842385,-151.0,0.00028131,7]
[366974703,1750603842395,-151.0,0.00028131,7]
[366974705,1750603842404,-3840.43171158,0.00028141,18]
[366974707,1750603842414,-35466.3632654,0.0002819,3]
[366974709,1750603842424,-151.0,0.000282,7]
[366974710,1750603842434,-230.907838,0.000282,7]
[366974712,1750603842443,-230.907838,0.000282,7]
[366974714,1750603842453,-157.230218,0.000282,7]
[366974716,1750603842463,-203.703856,0.000282,7]
[366974718,1750603842472,-203.703856,0.000282,7]
[366974721,1750603842482,-156.636763,0.000282,7]
[366974723,1750603842491,-156.636763,0.000282,7]
[366974724,1750603842501,-2147.69792749,0.00028219,2]
[366974726,1750603842510,-193.82076829,0.00028224,2]
[366974728,1750603842519,-511.0,0.0002827,120]
[366974730,1750603842528,-26383.1133095,0.0002827,3]
[366974732,1750603842538,-511.0,0.0002828,120]
[366974733,1750603842547,-35466.3632654,0.0002828,3]
[366974735,1750603842558,-26383.1133095,0.0002828,3]
[366974737,1750603842567,-511.0,0.0002829,120]
[366974739,1750603842580,-35466.3632654,0.0002829,3]
[366974741,1750603842590,-52766.2266191,0.0002829,3]
[366974743,1750603842600,-867.83108252,0.000283,2]
[366974745,1750603842610,-10724.12,0.000283,2]
[366974748,1750603842620,-73886.73,0.000283,2]
[366974750,1750603842630,-4724.51,0.000283,2]
[366974751,1750603842639,-3623.83,0.000283,2]
[366974753,1750603842649,-151.0,0.000283,7]
[366974755,1750603842659,-35466.3632654,0.0002836,3]
[366974757,1750603842669,-690.73618423,0.00028366,2]
[366974759,1750603842678,-150.5,0.0002837,120]
[366974761,1750603842688,-26383.1133095,0.0002837,3]
[366974763,1750603842698,-150.5,0.0002838,120]
[366974764,1750603842707,-52766.2266191,0.0002838,3]
[366974766,1750603842716,-150.5,0.0002839,120]
[366974768,1750603842725,-79149.3399286,0.0002839,3]
[366974770,1750603842735,-10101.86294975,0.000284,5]
[366974771,1750603842745,-228362.24113831,0.000284,2]
[366974773,1750603842754,-1000.0,0.000285,2]
[366974775,1750603842764,-1500.0,0.000285,2]
[366974777,1750603842773,-4609.0,0.00028548,2]
[366974779,1750603842783,-300.0,0.00028715,2]
[366974781,1750603842792,-152.0,0.00028745,7]
[366974783,1750603842803,-151.0,0.00028767,7]
[366974784,1750603842812,-151.0,0.00028767,7]
[366974786,1750603842824,-7759.64,0.00028767,2]
[366974788,1750603842834,-690.73618423,0.00028777,2]
[366974790,1750603842843,-5000.0,0.000288,7]
[366974792,1750603842854,-5000.0,0.000288,8]
[366974793,1750603842863,-5000.0,0.000288,20]
[366974795,1750603842873,-10724.12,0.000288,2]
[366974797,1750603842883,-73886.73,0.000288,2]
[366974799,1750603842893,-4724.51,0.000288,2]
[366974801,1750603842902,-3623.83,0.000288,2]
[366974803,1750603842912,-150.0,0.000288,2]
[366974805,1750603842921,-151.0,0.000288,7]
[366974806,1750603842931,-1569.62426672,0.000288,2]
[366974808,1750603842942,-150.0,0.00028839,2]
[366974810,1750603842951,-150.0,0.00028848,2]
[366974812,1750603842962,-3840.43171158,0.00028866,19]
[366974814,1750603842974,-7392.28,0.000289,2]
[366974816,1750603842984,-1000.0,0.000289,10]
[366974818,1750603842993,-400.0,0.0002897,2]
[366974819,1750603843003,-300.0,0.0002897,2]
[366974821,1750603843013,-151.0,0.00028975,7]
[366974823,1750603843023,-150.0,0.00028999,2]
[366974825,1750603843033,-50000.0,0.00029,2]
[366974827,1750603843042,-500.0,0.00029,2]
[366974829,1750603843052,-4775.52994589,0.00029,2]
[366974831,1750603843062,-509.0,0.00029,5]
[366974832,1750603843073,-1000.0,0.00029,2]
[366974834,1750603843082,-10724.12,0.00029,2]
[366974836,1750603843092,-73886.73,0.00029,2]
[366974838,1750603843102,-4724.51,0.00029,2]
[366974840,1750603843111,-3623.83,0.00029,2]
[366974842,1750603843120,-3500.0,0.00029,3]
[366974844,1750603843130,-5018.51331245,0.00029,3]
[366974845,1750603843139,-473.24506754,0.00029,2]
[366974847,1750603843150,-1500.0,0.00029,3]
[366974849,1750603843159,-264.0,0.00029,2]
[366974851,1750603843169,-158.0,0.00029,120]
[366974853,1750603843180,-160.0,0.00029,2]
[366974855,1750603843189,-176.0,0.00029,120]
[366974857,1750603843202,-151.0,0.00029,7]
[366974859,1750603843211,-151.0,0.00029,7]
[366974860,1750603843222,-151.0,0.00029,7]
[366974861,1750603843236,-459.961665,0.00029,2]
[366974862,1750603843246,-459.961665,0.00029,2]
[366974863,1750603843257,-151.0,0.00029,7]
[366974864,1750603843266,-151.0,0.00029,7]
[366974865,1750603843275,-230.907838,0.00029,7]
[366974866,1750603843284,-230.907838,0.00029,7]
[366974867,1750603843293,-151.0,0.00029,7]
[366974868,1750603843303,-151.0,0.00029,7]
[366974869,1750603843312,-151.0,0.00029,7]
[366974870,1750603843323,-151.0,0.00029,7]
[366974871,1750603843332,-151.0,0.00029,7]
[366974872,1750603843343,-227.289352,0.00029,7]
[366974874,1750603843352,-227.289352,0.00029,7]
[366974875,1750603843361,-151.0,0.00029,7]
[366974876,1750603843371,-160.917405,0.00029,7]
[366974877,1750603843380,-160.917405,0.00029,7]
[366974878,1750603843390,-291.898973,0.00029,7]
[366974879,1750603843399,-151.0,0.00029,7]
[366974880,1750603843408,-151.0,0.00029,7]
[366974881,1750603843418,-154.753994,0.00029,7]
[366974882,1750603843427,-203.703856,0.00029,7]
[366974883,1750603843436,-203.703856,0.00029,7]
[366974884,1750603843446,-151.0,0.00029,7]
[366974885,1750603843455,-176.81507,0.00029,7]
[366974886,1750603843464,-156.636763,0.00029,7]
[366974887,1750603843474,-156.636763,0.00029,7]
[366974888,1750603843483,-71362.13,0.00029,7]
[366974889,1750603843493,-1500.0,0.00029,2]
[366974890,1750603843503,-151.0,0.00029002,7]
[366974892,1750603843512,-1946.73973523,0.00029014,2]
[366974894,1750603843522,-1333.0,0.00029041,120]
[366974895,1750603843532,-1000.0,0.00029133,2]
[366974897,1750603843542,-205.0,0.00029154,9]
[366974898,1750603843551,-690.73618423,0.00029189,2]
[366974900,1750603843562,-50000.0,0.000292,3]
[366974902,1750603843573,-331.32,0.00029278,120]
[366974904,1750603843584,-163.85,0.00029319,2]
[366974906,1750603843594,-187.78006525,0.00029326,2]
[366974908,1750603843604,-152.0,0.00029389,8]
[366974910,1750603843615,-50000.0,0.000294,4]
[366974912,1750603843625,-267.46074303,0.00029486,2]
[366974915,1750603843635,-500.0,0.000295,2]
[366974918,1750603843646,-1000.0,0.000295,2]
[366974921,1750603843655,-1500.0,0.000295,2]
[366974923,1750603843667,-455.61,0.00029533,2]
[366974926,1750603843676,-332.85,0.00029537,2]
[366974929,1750603843686,-150.0,0.0002956,2]
[366974931,1750603843696,-3840.43171158,0.0002959,21]
[366974934,1750603843706,-50000.0,0.000296,5]
[366974937,1750603843717,-690.73618423,0.000296,2]
[366974940,1750603843727,-1211365.61004759,0.00029692,2]
[366974942,1750603843738,-1859.63396289,0.00029692,2]
[366974945,1750603843747,-10896.52921568,0.00029692,2]
[366974948,1750603843757,-4369587.45154878,0.00029692,3]
[366975062,1750603844704,-993.21,0.00029692,3]
[366975067,1750603844748,-4096.0,0.00020891,2]
[366975069,1750603844757,-34424.97249996,0.00029692,3]
[366975136,1750603845399,-395.92311807,0.00021555,2]
[366975183,1750603845737,-17.1305357,0.00021555,2]
[366975188,1750603845749,-186.94634623,0.00021555,2]
[366975191,1750603845758,-111.76206377,0.00023891,2]
[366975206,1750603845893,-544.2448634,0.00023891,2]
[366975208,1750603845905,-3439.99307283,0.00023891,2]
[366975210,1750603845915,-254.58015289,0.0002629,2]
[366975212,1750603845924,-1288.92677428,0.00026891,2]
[366975223,1750603846028,-2807.07322572,0.00026891,2]
[366975225,1750603846037,-1000.0,0.00027397,7]
[366975227,1750603846047,-1000.0,0.00027397,7]
[366975229,1750603846056,-18911.57536172,0.00029692,3]
[366975231,1750603846070,-262.07266366,0.00029692,3]
[366975234,1750603846092,-306.62745021,0.00029692,3]
[366975496,1750603848805,-885.0,0.00020891,2]
[366975498,1750603848815,-523.856,0.00023891,2]
[366975500,1750603848825,-1139.0,0.00025214,2]
[366975502,1750603848835,-254.58015282,0.00027839,2]
[366975504,1750603848845,-3192.60384718,0.00029692,3]
[366975516,1750603848951,-46285.82485447,0.00029692,3]
[366975528,1750603849071,-2184.49999998,0.00029692,3]
[366975532,1750603849096,-1542.7661611,0.00029692,3]
[366975549,1750603849253,-601.565,0.00029692,3]
[366981479,1750604106218,10000.0,0.00024658,120]
[366981480,1750604114970,10000.0,0.00024658,120]
[366981481,1750604124935,10000.0,0.00024658,120]
[366981487,1750604187906,187.46,0.00013699,2]
[366982354,1750605032235,-178.71,0.00018814,2]
[366982355,1750605032245,-483.9,0.00019,2]
[366982356,1750605032258,-706.93281431,0.00019,2]
[366982357,1750605032437,-2627.50074347,0.00019,2]
[366982358,1750605032448,-276.69984521,0.00019,2]
[366982371,1750605032886,-1042.01624572,0.00019,2]
[366982372,1750605032900,-2283.95035129,0.00019,2]
[366982373,1750605032911,-1200.0,0.00019679,2]
[366982374,1750605032921,-600.0,0.0001968,2]
[366982375,1750605032931,-300.0,0.0001968,2]
[366982376,1750605032942,-154.0945543,0.00019681,2]
[366982377,1750605032952,-5446.62532203,0.00019783,2]
[366982378,1750605032965,-6644.76566815,0.00019783,2]
[366982379,1750605032977,-2680.83712573,0.000199,2]
[366982381,1750605032987,-2469.31,0.0002,2]
[366982383,1750605032996,-2469.31,0.0002,2]
[366982384,1750605033006,-2469.31,0.0002,2]
[366982385,1750605033017,-10000.0,0.0002,2]
[366982386,1750605033028,-187.46,0.00020187,2]
[366982387,1750605033038,-2687.360642,0.00020291,2]
[366982388,1750605033048,-834.42866044,0.00020525,2]
[366982389,1750605033058,-2680.83712567,0.00020659,3]
[366982390,1750605033067,-250.0,0.00020696,2]
[366982391,1750605033077,-300.0,0.00020696,2]
[366982392,1750605033087,-1000.0,0.00020992,2]
[366982393,1750605033097,-1000.0,0.00020992,2]
[366982394,1750605033107,-1000.0,0.00020992,2]
[366982395,1750605033117,-1000.0,0.00020992,2]
[366982396,1750605033126,-1000.0,0.00020992,2]
[366982397,1750605033136,-1000.0,0.00020992,2]
[366982398,1750605033147,-285.2552,0.00020992,2]
[366982399,1750605033157,-2469.31,0.00021,2]
[366982400,1750605033167,-1887.78,0.00021,2]
[366982401,1750605033177,-200.250048,0.00021,2]
[366982402,1750605033187,-4096.0,0.00021221,2]
[366982403,1750605033197,-2429.746,0.00021221,2]
[366982404,1750605033207,-2680.83712567,0.00021417,5]
[366982405,1750605033216,-420.0,0.00021436,2]
[366982406,1750605033231,-15.39393947,0.00021539,2]
[366982407,1750605033244,-570.55157139,0.00021539,2]
[366982412,1750605037988,-450.65576251,0.000189,2]
[366982413,1750605038002,-286.22892521,0.000189,2]
[366982414,1750605038013,-3046.53670888,0.000189,2]
[366982415,1750605038024,-156.0,0.00021221,2]
[366982416,1750605038034,-1094.05448914,0.00021539,2]
[366982417,1750605038044,-600.0,0.00021555,2]
[366982418,1750605038053,-500.0,0.00021636,2]
[366982419,1750605038063,-154.0945543,0.00021646,2]
[366982420,1750605038073,-401.0,0.00021648,2]
[366982421,1750605038082,-500.0,0.00021746,2]
[366982422,1750605038092,-205.0,0.00021748,2]
[366982423,1750605038102,-205.0,0.00021748,2]
[366982424,1750605038112,-218.0,0.00021748,2]
[366982425,1750605038121,-1000.0,0.00021783,2]
[366982426,1750605038131,-13730.3457,0.00021783,2]
[366982427,1750605038140,-427.89194643,0.0002197,2]
[366982428,1750605038149,-2687.360642,0.00021992,3]
[366982429,1750605038159,-502.34845587,0.00022038,2]
[366982430,1750605038169,-2680.83712567,0.00022176,6]
[366982431,1750605038180,-500.0,0.00022184,2]
[366982432,1750605038189,-503.8733946,0.00022233,2]
[366982433,1750605038199,-419.89933494,0.00022233,2]
[366982434,1750605038208,-240.93444004,0.00022233,2]
[366982435,1750605038220,-259.06555996,0.00022233,2]
[366982436,1750605038233,-371.86016931,0.00022233,2]
[366982437,1750605038242,-501.86653974,0.00022327,2]
[366982438,1750605038252,-502.54483699,0.00022459,2]
[366982439,1750605038262,-500.0,0.00022459,2]
[366982440,1750605038271,-500.0,0.00022465,2]
[366982441,1750605038281,-287.74858017,0.00022465,2]
[366982442,1750605038291,-500.0,0.00022571,2]
[366982443,1750605038301,-2680.83712567,0.00022934,8]
[366982444,1750605038310,-151.0,0.00023033,2]